bitfinex/quotes_BTCUSD_20250607
["timestamp","ask_amount","ask_price","bid_price","bid_amount"]
[1749319487539,0.16571827,105870.0,105860.0,1.70011418]
[1749319487774,0.16324314,105870.0,105860.0,1.30691958]
[1749319487995,0.1661966,105870.0,105860.0,0.92299958]
[1749319488239,0.18367892,105870.0,105860.0,0.94178533]
[1749319488452,0.17277981,105870.0,105860.0,1.32574533]
[1749319488669,0.15529763,105870.0,105860.0,1.32574533]
[1749319488886,0.17279769,105870.0,105860.0,1.32574533]
[1749319489127,0.18799769,105870.0,105860.0,1.32574533]
[1749319489351,0.18504414,105870.0,105860.0,1.32934533]
[1749319489571,0.18504414,105870.0,105860.0,0.94178533]
[1749319489780,0.18504414,105870.0,105860.0,1.32930533]
[1749319490001,0.18504414,105870.0,105860.0,1.32934533]
[1749319490217,0.18504414,105870.0,105860.0,0.94178533]
[1749319490467,0.18504414,105870.0,105860.0,1.32930533]
[1749319490676,0.20246627,105870.0,105860.0,1.32926533]
[1749319490902,0.20252733,105870.0,105860.0,1.32926533]
[1749319491118,0.20452731,105870.0,105860.0,1.32926533]
[1749319491328,0.2045273,105870.0,105860.0,0.94178533]
[1749319491541,0.20452732,105870.0,105860.0,1.32922533]
[1749319492222,0.20452732,105870.0,105860.0,0.98910533]
[1749319492430,0.20452732,105870.0,105860.0,0.60178533]
[1749319492647,0.20593407,105870.0,105860.0,0.60178533]
[1749319492860,0.19648897,105870.0,105860.0,0.96064733]
[1749319493123,0.21395293,105870.0,105860.0,0.96064733]
[1749319493338,0.20450801,105870.0,105860.0,0.96064733]
[1749319493482,0.21395285,105870.0,105860.0,0.96064733]
[1749319493694,0.22339786,105870.0,105860.0,0.96064733]
[1749319493893,0.21690673,105870.0,105860.0,0.96064733]
[1749319494093,0.21395285,105870.0,105860.0,0.96064733]
[1749319494319,0.20888786,105870.0,105860.0,0.96064733]
[1749319494541,0.21397097,105870.0,105860.0,0.96064733]
[1749319494784,0.21692485,105870.0,105860.0,0.96064733]
[1749319494956,0.20748002,105870.0,105860.0,0.96064733]
[1749319495164,0.19648897,105870.0,105860.0,0.96064733]
[1749319495569,0.19944286,105870.0,105860.0,0.96064733]
[1749319495943,0.18704414,105870.0,105860.0,0.96064733]
[1749319496376,0.20454616,105870.0,105860.0,0.96064733]
[1749319496544,0.18704414,105870.0,105860.0,0.57340733]
[1749319496754,0.19944284,105870.0,105860.0,0.86816733]
[1749319496930,0.2169448,105870.0,105860.0,0.86816733]
[1749319497134,0.20750008,105870.0,105860.0,0.86816733]
[1749319497345,0.20454621,105870.0,105860.0,0.86816733]
[1749319497548,0.20750008,105870.0,105860.0,0.86816733]
[1749319497749,0.21694482,105870.0,105860.0,0.86816733]
[1749319498008,0.21399095,105870.0,105860.0,0.86816733]
[1749319498403,0.21694482,105870.0,105860.0,0.86816733]
[1749319498714,0.19944275,105870.0,105860.0,0.86816733]
[1749319498917,0.20454619,105870.0,105860.0,0.86816733]
[1749319499152,0.21399103,105870.0,105860.0,0.86816733]
[1749319499336,0.21694491,105870.0,105860.0,0.86816733]
[1749319499573,0.21399107,105870.0,105860.0,0.86816733]
[1749319500161,0.210454,105870.0,105860.0,0.57340733]
[1749319500388,0.19944285,105870.0,105860.0,0.95992733]
[1749319500600,0.41825482,105870.0,105860.0,0.35614033]
[1749319500816,0.41825482,105870.0,105860.0,0.63172]
[1749319500817,0.41825545,105870.0,105860.0,0.63172]
[1749319501043,0.41825545,105870.0,105860.0,0.2452]
[1749319501044,0.41825598,105870.0,105860.0,0.2452]
[1749319501250,0.24004011,105850.0,105840.0,0.29048517]
[1749319501631,0.07156114,105850.0,105840.0,0.7003878]
[1749319501835,0.08100824,105850.0,105840.0,0.70979539]
[1749319502043,0.09045547,105850.0,105840.0,0.70979539]
[1749319502277,0.08750078,105850.0,105840.0,0.70979539]
[1749319502500,0.06998788,105850.0,105840.0,0.70979539]
[1749319502696,0.08750078,105850.0,105840.0,0.70979539]
[1749319503110,0.07156107,105850.0,105840.0,0.70979539]
[1749319503316,0.0621141,105850.0,105840.0,0.70979539]
[1749319503533,0.05271182,105850.0,105840.0,0.70979539]
[1749319503745,0.0352,105850.0,105840.0,0.70979539]
[1749319503944,0.05271173,105850.0,105840.0,0.70979539]
[1749319504354,0.02053225,105850.0,105840.0,0.72433624]
[1749319504563,0.0234867,105850.0,105840.0,0.72433624]
[1749319504767,0.02053225,105850.0,105840.0,1.09213332]
[1749319504966,0.02053225,105850.0,105840.0,1.12922145]
[1749319505170,0.02053225,105850.0,105840.0,1.12051832]
[1749319505377,0.003,105850.0,105840.0,1.12051832]
[1749319505756,0.02056442,105850.0,105840.0,1.15760645]
[1749319505988,0.02056455,105850.0,105840.0,1.15760645]
[1749319506425,0.02056452,105850.0,105840.0,1.15760645]
[1749319506633,0.02351873,105850.0,105840.0,1.15760645]
[1749319506838,0.00595421,105850.0,105840.0,1.15760645]
[1749319507048,0.02353361,105850.0,105840.0,1.15760645]
[1749319507261,0.0205794,105850.0,105840.0,1.15760645]
[1749319507468,0.003,105850.0,105840.0,1.15760645]
[1749319507642,0.0059542,105850.0,105840.0,1.12980937]
[1749319507883,0.06448028,105850.0,105840.0,1.11461132]
[1749319508089,0.05503358,105850.0,105840.0,0.70951539]
[1749319508307,0.05503566,105850.0,105840.0,0.70951539]
[1749319508516,0.06452233,105850.0,105840.0,0.70951539]
[1749319508727,0.02062077,105850.0,105840.0,1.11465132]
[1749319508930,0.02061892,105850.0,105840.0,1.15721612]
[1749319509151,0.003,105850.0,105840.0,1.15721612]
[1749319509364,0.02357263,105850.0,105840.0,1.21012799]
[1749319509810,0.02357263,105850.0,105840.0,1.12012799]
[1749319510044,0.02357177,105850.0,105840.0,1.13642799]
[1749319510250,0.02061761,105850.0,105840.0,1.13642799]
[1749319510475,0.00595394,105850.0,105840.0,1.13642799]
[1749319510704,0.003,105850.0,105840.0,1.13642799]
[1749319511548,0.003,105850.0,105840.0,1.12012799]
[1749319511748,0.003,105850.0,105840.0,1.06405624]
[1749319512111,0.003,105850.0,105840.0,1.14857562]
[1749319512307,0.003,105850.0,105840.0,1.09244124]
[1749319513755,0.003,105850.0,105840.0,1.16791652]
[1749319514305,0.02066398,105850.0,105840.0,1.16791652]
[1749319514730,0.003,105850.0,105840.0,1.16791652]
[1749319514937,0.02066398,105850.0,105840.0,1.16791652]
[1749319515576,0.01826398,105850.0,105840.0,1.16791652]
[1749319515795,0.01826409,105850.0,105840.0,1.16791652]
[1749319516010,0.01826396,105850.0,105840.0,1.16791652]
[1749319517283,0.01826935,105850.0,105840.0,1.16791652]
[1749319517491,0.0006,105850.0,105840.0,1.16791652]
[1749319517697,0.01826928,105850.0,105840.0,1.16791652]
[1749319517900,0.01826933,105850.0,105840.0,1.16791652]
[1749319518110,0.01826931,105850.0,105840.0,1.16791652]
[1749319518354,0.0006,105850.0,105840.0,1.16791652]
[1749319518564,0.01826928,105850.0,105840.0,1.16791652]
[1749319518769,0.0006,105850.0,105840.0,1.16791652]
[1749319519402,0.01827962,105850.0,105840.0,1.56973857]
[1749319519641,0.01827962,105850.0,105840.0,1.58513857]
[1749319519851,0.0006,105850.0,105840.0,1.58513857]
[1749319520059,0.01827941,105850.0,105840.0,1.58513857]
[1749319520267,0.01827939,105850.0,105840.0,1.60033857]
[1749319520475,0.01827937,105850.0,105840.0,1.60033857]
[1749319520689,0.0006,105850.0,105840.0,1.60033857]
[1749319520931,0.0006,105850.0,105840.0,1.52486329]
[1749319521134,0.0006,105850.0,105840.0,1.61918637]
[1749319522402,0.0006,105850.0,105840.0,1.20222637]
[1749319522611,0.0006,105850.0,105840.0,0.80051209]
[1749319522819,0.0006,105850.0,105840.0,1.09084124]
[1749319523247,0.0006,105850.0,105840.0,1.49255552]
[1749319523780,0.0006,105850.0,105840.0,1.50805552]
[1749319524195,0.0006,105850.0,105840.0,1.56757407]
[1749319525930,0.0006,105850.0,105840.0,0.78109979]
[1749319526159,0.43531428,105850.0,105840.0,0.73602039]
[1749319526366,0.43531428,105850.0,105840.0,1.10391736]
[1749319527027,0.45299727,105850.0,105840.0,0.37943736]
[1749319527278,0.6608381,105850.0,105840.0,0.25331907]
[1749319527502,0.66084043,105850.0,105840.0,0.71709209]
[1749319527727,0.47188468,105850.0,105840.0,0.74543531]
[1749319527934,0.47188468,105850.0,105840.0,0.36075531]
[1749319527935,0.45299047,105850.0,105840.0,0.36075531]
[1749319528147,0.46243744,105850.0,105840.0,0.74539531]
[1749319528359,0.0607224,105850.0,105840.0,0.74539531]
[1749319528593,0.46243668,105850.0,105840.0,0.74539531]
[1749319529018,0.46183668,105850.0,105840.0,0.74539531]
[1749319529228,0.44416125,105850.0,105840.0,0.74539531]
[1749319529435,0.46383672,105850.0,105840.0,0.74539531]
[1749319529642,0.47328351,105850.0,105840.0,0.74539531]
[1749319529857,0.47328351,105850.0,105840.0,0.74039531]
[1749319530076,0.47328361,105850.0,105840.0,0.74039531]
[1749319530286,0.47628354,105850.0,105840.0,0.74039531]
[1749319530494,0.47628347,105850.0,105840.0,0.74039531]
[1749319530702,0.47628371,105850.0,105840.0,0.74039531]
[1749319530906,0.48573066,105850.0,105840.0,0.74039531]
[1749319531150,0.48573012,105850.0,105840.0,0.74039531]
[1749319531365,0.49517727,105850.0,105840.0,0.74039531]
[1749319531571,0.07456887,105850.0,105840.0,0.74015531]
[1749319531781,0.46683636,105850.0,105840.0,0.74015531]
[1749319532026,0.47628324,105850.0,105840.0,0.35575531]
[1749319532201,0.47628338,105850.0,105840.0,0.74011531]
[1749319532421,0.46805474,105850.0,105840.0,0.74011531]
[1749319532644,0.48572609,105850.0,105840.0,0.74011531]
[1749319533250,0.49517315,105850.0,105840.0,0.74011531]
[1749319533467,0.4775018,105850.0,105840.0,0.74011531]
[1749319533683,0.49517337,105850.0,105840.0,0.74011531]
[1749319533886,0.48572631,105850.0,105840.0,0.74011531]
[1749319534094,0.46805474,105850.0,105840.0,0.74011531]
[1749319534334,0.4951717,105850.0,105840.0,0.74011531]
[1749319534548,0.46805474,105850.0,105840.0,0.74011531]
[1749319534755,0.47750189,105850.0,105840.0,0.74011531]
[1749319534966,0.46805474,105850.0,105840.0,0.74011531]
[1749319535182,0.47750189,105850.0,105840.0,0.44703531]
[1749319535383,0.66644851,105850.0,105840.0,0.7399154]
[1749319535587,0.6570019,105850.0,105840.0,0.68337994]
[1749319535792,0.6570019,105850.0,105840.0,0.70227548]
[1749319536447,0.6570019,105850.0,105840.0,0.70227557]
[1749319536669,0.64755502,105850.0,105840.0,0.6928278]
[1749319536877,0.64755502,105850.0,105840.0,0.68329994]
[1749319537274,0.64755502,105850.0,105840.0,0.67385199]
[1749319537275,0.63810805,105850.0,105840.0,0.67385199]
[1749319537530,0.63810805,105850.0,105830.0,0.3021682]
[1749319537531,0.23946064,105840.0,105830.0,0.3021682]
[1749319537742,0.65062269,105840.0,105830.0,0.80146546]
[1749319537942,0.65062269,105840.0,105830.0,0.41746546]
[1749319538172,0.65062269,105840.0,105830.0,0.40801697]
[1749319538379,0.65062269,105840.0,105830.0,0.77327357]
[1749319538591,0.45220955,105840.0,105830.0,0.78272215]
[1749319538823,0.0410475,105840.0,105830.0,0.79217064]
[1749319539040,0.05149518,105840.0,105830.0,0.82032279]
[1749319539243,0.06094304,105840.0,105830.0,0.82032279]
[1749319539448,0.0326,105840.0,105830.0,0.82032279]
[1749319539657,0.001,105840.0,105830.0,0.82028516]
[1749319539871,0.003,105840.0,105830.0,0.8578126]
[1749319540295,0.003,105840.0,105830.0,0.82028516]
[1749319541345,0.003,105840.0,105830.0,0.88875345]
[1749319541552,0.003,105840.0,105830.0,1.2731209]
[1749319541758,0.003,105840.0,105830.0,1.32559346]
[1749319544182,0.003,105840.0,105830.0,1.29299346]
[1749319544390,0.003,105840.0,105830.0,1.29271346]
[1749319544810,0.0188,105840.0,105830.0,0.91451439]
[1749319545015,0.003,105840.0,105830.0,0.91451439]
[1749319545576,0.003,105840.0,105830.0,0.87703765]
[1749319545780,0.003,105840.0,105830.0,0.91451622]
[1749319546149,0.003,105840.0,105830.0,0.96907346]
[1749319546814,0.003,105840.0,105830.0,1.38698774]
[1749319550539,0.003,105840.0,105830.0,1.67070577]
[1749319551604,0.003,105840.0,105830.0,1.74572432]
[1749319553425,0.003,105840.0,105830.0,2.04362432]
[1749319553637,0.003,105840.0,105830.0,2.09362432]
[1749319553840,0.003,105840.0,105830.0,2.01860577]
[1749319554061,0.003,105840.0,105830.0,2.04698877]
[1749319554276,0.003,105840.0,105830.0,2.14141962]
[1749319556097,0.003,105840.0,105830.0,2.11583962]
[1749319556818,0.003,105840.0,105830.0,2.02140877]
[1749319557021,0.003,105840.0,105830.0,2.11583962]
[1749319559103,0.003,105840.0,105830.0,1.96980877]
[1749319559512,0.003,105840.0,105830.0,1.66277892]
[1749319559718,0.003,105840.0,105830.0,2.04481892]
[1749319561694,0.003,105840.0,105830.0,2.04481204]
[1749319561903,0.003,105840.0,105830.0,1.96980877]
[1749319562107,0.003,105840.0,105830.0,2.04480898]
[1749319562312,0.003,105840.0,105830.0,2.42152305]
[1749319562517,0.15529802,105870.0,105860.0,0.23180785]
[1749319562723,0.15529802,105870.0,105860.0,1.01247088]
[1749319563172,0.15529802,105870.0,105860.0,1.04085088]
[1749319563377,0.17099802,105870.0,105860.0,1.04085088]
[1749319563823,0.17099802,105870.0,105860.0,1.05008293]
[1749319565037,0.17199802,105870.0,105860.0,1.05008293]
[1749319565253,0.18769802,105870.0,105860.0,1.05918254]
[1749319565472,0.18769802,105870.0,105860.0,0.67622159]
[1749319565704,0.18769802,105870.0,105860.0,1.05902159]
[1749319567062,0.18769802,105870.0,105860.0,0.7041602]
[1749319567268,0.18769802,105870.0,105860.0,1.0868402]
[1749319567481,0.15629802,105870.0,105860.0,1.0868402]
[1749319567907,0.15629802,105870.0,105860.0,1.45107582]
[1749319568133,0.15629802,105870.0,105860.0,1.34726154]
[1749319568367,0.15629802,105870.0,105860.0,2.06365227]
[1749319568589,0.15629802,105870.0,105860.0,2.11984307]
[1749319568817,0.15629802,105870.0,105860.0,2.06365227]
[1749319569285,0.15629802,105870.0,105860.0,2.138617]
[1749319569490,0.15629802,105870.0,105860.0,2.238617]
[1749319573151,0.15629802,105870.0,105860.0,2.188617]
[1749319573366,0.15629802,105870.0,105860.0,2.238617]
[1749319574696,0.15629802,105870.0,105860.0,1.805937]
[1749319574909,0.15629802,105870.0,105860.0,2.188217]
[1749319575120,0.15629802,105870.0,105860.0,2.16325227]
[1749319575547,0.15629802,105870.0,105860.0,1.24835799]
[1749319575804,0.35465368,105870.0,105860.0,0.72340808]
[1749319576023,0.21583331,105870.0,105860.0,0.38827125]
[1749319576237,0.40474423,105870.0,105860.0,1.10554737]
[1749319576456,0.40474423,105870.0,105860.0,1.03439944]
[1749319576666,0.21583331,105870.0,105860.0,1.05838619]
[1749319576881,0.21583331,105870.0,105860.0,0.63362673]
[1749319577117,0.21583331,105870.0,105860.0,1.02531254]
[1749319577351,0.22527876,105870.0,105860.0,1.02531254]
[1749319577558,0.22527876,105870.0,105860.0,1.03985339]
[1749319577982,0.21583331,105870.0,105860.0,1.03985339]
[1749319578424,0.20638795,105870.0,105860.0,1.03985339]
[1749319579695,0.20638795,105870.0,105860.0,1.03969339]
[1749319580124,0.20638795,105870.0,105860.0,0.65761339]
[1749319580329,0.20638795,105870.0,105860.0,1.03965339]
[1749319580541,0.21583313,105870.0,105860.0,0.73836758]
[1749319580760,0.21583313,105870.0,105860.0,1.03961339]
[1749319581021,0.2252784,105870.0,105860.0,1.03961339]
[1749319581250,0.2252784,105870.0,105860.0,1.12957339]
[1749319581460,0.2252784,105870.0,105860.0,0.83781339]
[1749319581670,0.2252784,105870.0,105860.0,1.12953339]
[1749319582088,0.21583313,105870.0,105860.0,1.12953339]
[1749319582543,0.21583313,105870.0,105860.0,1.10145333]
[1749319583253,0.20479603,105870.0,105860.0,1.10145333]
[1749319583464,0.20189986,105870.0,105860.0,1.12960242]
[1749319583668,0.21134522,105870.0,105860.0,1.10145333]
[1749319584083,0.20189977,105870.0,105860.0,1.10129333]
[1749319584414,0.21134487,105870.0,105860.0,1.10129333]
[1749319584631,0.83793028,105870.0,105860.0,0.58719075]
[1749319584860,0.84737564,105870.0,105860.0,1.0492581]
[1749319585291,0.84737564,105870.0,105860.0,0.71688]
[1749319585499,0.86504981,105870.0,105860.0,0.83470137]
[1749319585707,0.86505165,105870.0,105860.0,0.84414745]
[1749319585912,0.86505165,105870.0,105860.0,0.85359335]
[1749319585913,0.87449704,105870.0,105860.0,0.85359335]
[1749319586121,0.86626663,105870.0,105860.0,0.85359335]
[1749319586345,0.88394249,105870.0,105860.0,0.85355335]
[1749319586557,0.86626663,105870.0,105860.0,0.85355335]
[1749319586959,0.88394249,105870.0,105860.0,0.85355335]
[1749319587166,0.22902173,105870.0,105860.0,0.86291916]
[1749319587397,0.21134592,105870.0,105860.0,0.86291916]
[1749319588274,0.0589377,105860.0,105850.0,0.34905164]
[1749319588497,0.05893761,105860.0,105850.0,0.84602533]
[1749319588801,0.06838387,105860.0,105850.0,0.84602533]
[1749319588891,0.05893761,105860.0,105850.0,0.84602533]
[1749319589345,0.05893761,105860.0,105850.0,0.84598533]
[1749319589558,0.05993761,105860.0,105850.0,0.84598533]
[1749319589770,0.05049153,105860.0,105850.0,0.84598533]
[1749319590003,0.05993761,105860.0,105850.0,0.84598533]
[1749319590913,0.05993761,105860.0,105850.0,0.84586533]
[1749319591130,0.06938387,105860.0,105850.0,0.84586533]
[1749319591582,0.06938387,105860.0,105850.0,0.93586533]
[1749319591795,0.07883101,105860.0,105850.0,0.93586533]
[1749319592644,0.25831388,105860.0,105850.0,0.88898452]
[1749319592944,0.25831388,105860.0,105850.0,0.87009076]
[1749319593157,0.2488678,105860.0,105850.0,0.87953782]
[1749319595320,0.2488678,105860.0,105850.0,0.88898479]
[1749319595528,0.2488678,105860.0,105850.0,0.81334898]
[1749319595743,0.2299752,105860.0,105850.0,0.79445495]
[1749319595952,0.22052877,105860.0,105850.0,0.79423059]
[1749319596159,0.22052877,105860.0,105850.0,0.30475664]
[1749319596448,0.22052877,105860.0,105850.0,0.76603334]
[1749319596670,0.22052877,105860.0,105850.0,0.56763948]
[1749319598425,0.22052877,105860.0,105850.0,0.57708681]
[1749319598846,0.22052877,105860.0,105850.0,0.56763948]
[1749319599053,0.22052877,105860.0,105850.0,0.56747948]
[1749319599436,0.22052877,105860.0,105850.0,0.7564261]
[1749319599655,0.22052877,105860.0,105850.0,0.56747948]
[1749319601313,0.62244815,105860.0,105850.0,0.56747948]
[1749319603549,0.62244815,105860.0,105850.0,0.18639948]
[1749319603759,0.62244815,105860.0,105850.0,0.56723948]
[1749319604658,0.62244815,105860.0,105850.0,0.56719948]
[1749319606660,0.64012507,105860.0,105850.0,0.56719948]
[1749319607221,0.64012506,105860.0,105850.0,0.56719948]
[1749319607821,0.62244815,105860.0,105850.0,0.56719948]
[1749319608030,0.64012506,105860.0,105850.0,0.56719948]
[1749319608441,0.22997511,105860.0,105850.0,0.78448728]
[1749319608650,0.24886762,105860.0,105850.0,0.72264444]
[1749319609046,0.24886762,105860.0,105850.0,0.71319765]
[1749319609247,0.24886762,105860.0,105850.0,0.42259765]
[1749319609447,0.24886762,105860.0,105850.0,0.71291765]
[1749319609710,0.650787,105860.0,105850.0,0.71291765]
[1749319610287,0.05993885,105860.0,105850.0,0.73181141]
[1749319610486,0.02933815,105860.0,105850.0,0.74125811]
[1749319610688,0.01989189,105860.0,105850.0,0.74125811]
[1749319611080,0.02933815,105860.0,105850.0,0.77869222]
[1749319612450,0.03878449,105860.0,105850.0,0.77869222]
[1749319613900,0.02933815,105860.0,105850.0,0.77869222]
[1749319614449,0.04704296,105860.0,105850.0,0.77869222]
[1749319614972,0.04704293,105860.0,105850.0,0.77869222]
[1749319616173,0.03759667,105860.0,105850.0,0.77869222]
[1749319616294,0.02815054,105860.0,105850.0,0.77869222]
[1749319616720,0.0198918,105860.0,105850.0,0.77869222]
[1749319616925,0.03759653,105860.0,105850.0,0.77869222]
[1749319617968,0.03759833,105860.0,105850.0,0.77869222]
[1749319618434,0.02815243,105860.0,105850.0,0.77869222]
[1749319618652,0.01044581,105860.0,105850.0,0.77869222]
[1749319618870,0.02815243,105860.0,105850.0,0.77869222]
[1749319619543,0.02815243,105860.0,105850.0,0.75053506]
[1749319619769,0.0281539,105860.0,105850.0,0.75053506]
[1749319620210,0.04704597,105860.0,105850.0,0.75053506]
[1749319620470,0.047046,105860.0,105850.0,0.75053506]
[1749319620708,0.03759983,105860.0,105850.0,0.46021506]
[1749319620928,0.04704591,105860.0,105850.0,0.74993506]
[1749319621149,0.03759983,105860.0,105850.0,0.74993506]
[1749319621381,0.04704591,105860.0,105850.0,0.74993506]
[1749319621823,0.04704698,105860.0,105850.0,0.74993506]
[1749319622045,0.02933779,105860.0,105850.0,0.74993506]
[1749319622263,0.04704698,105860.0,105850.0,0.74993506]
[1749319622485,0.02933779,105860.0,105850.0,0.74993506]
[1749319622931,0.04704698,105860.0,105850.0,0.74993506]
[1749319623777,0.04704702,105860.0,105850.0,0.74993506]
[1749319623989,0.03760093,105860.0,105850.0,0.74993506]
[1749319624222,0.01989171,105860.0,105850.0,0.74993506]
[1749319624453,0.04705095,105860.0,105850.0,0.74993506]
[1749319624688,0.03760487,105860.0,105850.0,0.74993506]
[1749319624905,0.04705095,105860.0,105850.0,0.74993506]
[1749319625124,0.03760487,105860.0,105850.0,0.74993506]
[1749319625357,0.04705095,105860.0,105850.0,0.74993506]
[1749319625572,0.04705132,105860.0,105850.0,0.74993506]
[1749319625814,0.04705127,105860.0,105850.0,0.80607789]
[1749319626036,0.04705126,105860.0,105850.0,0.80607789]
[1749319626415,0.04705126,105860.0,105850.0,0.74993506]
[1749319626635,0.04705126,105860.0,105850.0,0.80607789]
[1749319627070,0.001,105860.0,105850.0,0.80607789]
[1749319627271,0.001,105860.0,105850.0,0.81368463]
[1749319628080,0.001,105860.0,105850.0,0.90368463]
[1749319628863,0.001,105860.0,105850.0,1.40006172]
[1749319629229,0.001,105860.0,105850.0,0.8463018]
[1749319629436,0.001,105860.0,105850.0,0.9027183]
[1749319629647,0.001,105860.0,105850.0,0.8463018]
[1749319629964,0.001,105860.0,105850.0,0.90271801]
[1749319630374,0.001,105860.0,105850.0,0.87221801]
[1749319631397,0.001,105860.0,105850.0,0.90271801]
[1749319632428,0.001,105860.0,105850.0,0.88719801]
[1749319632637,0.001,105860.0,105850.0,0.90259801]
[1749319634977,0.01044572,105860.0,105850.0,0.90259801]
[1749319635238,0.001,105860.0,105850.0,0.87197801]
[1749319636760,0.001,105860.0,105850.0,0.49353801]
[1749319636994,0.65078683,105860.0,105850.0,0.4788021]
[1749319637201,0.65078683,105860.0,105850.0,0.84792197]
[1749319637410,0.66848291,105860.0,105850.0,0.81032951]
[1749319637637,0.65903692,105860.0,105850.0,0.20748214]
[1749319637862,0.65903729,105860.0,105850.0,0.49680214]
[1749319638093,0.6590375,105860.0,105850.0,0.49680214]
[1749319638354,0.66199205,105860.0,105850.0,0.49680214]
[1749319638568,0.64114084,105860.0,105850.0,0.11820214]
[1749319638787,0.66179213,105860.0,105850.0,0.02820214]
[1749319639004,0.22919377,105850.0,105840.0,0.3108346]
[1749319639229,0.63111315,105850.0,105840.0,0.3108346]
[1749319639444,0.64881037,105850.0,105840.0,0.6893946]
[1749319639718,0.63111315,105850.0,105840.0,0.65176214]
[1749319639936,0.63111315,105850.0,105840.0,0.36252214]
[1749319640155,0.63111315,105850.0,105840.0,0.6236]
[1749319640156,0.64881241,105850.0,105840.0,0.6236]
[1749319640387,0.64881252,105850.0,105840.0,0.6236]
[1749319640610,0.22921251,105840.0,105830.0,0.02820214]
[1749319640829,0.63113189,105840.0,105830.0,0.37828]
[1749319641080,0.64044257,105840.0,105830.0,0.37828]
[1749319641295,0.65814317,105840.0,105830.0,0.37824]
[1749319641516,0.64044257,105840.0,105830.0,0.37824]
[1749319641731,0.18898233,105830.0,105820.0,0.23610201]
[1749319641945,0.62170171,105830.0,105820.0,0.71074149]
[1749319642167,0.63115064,105830.0,105820.0,0.33250149]
[1749319642394,0.63115064,105830.0,105820.0,0.71070149]
[1749319642831,0.2386801,105830.0,105820.0,0.72015114]
[1749319643052,0.23877047,105830.0,105820.0,0.72960061]
[1749319643269,0.24077047,105830.0,105820.0,0.72015114]
[1749319643490,0.24077047,105830.0,105820.0,0.70125166]
[1749319643769,0.24077047,105830.0,105820.0,0.71070149]
[1749319644018,0.24077047,105830.0,105820.0,0.72015123]
[1749319644235,0.24277047,105830.0,105820.0,0.72015123]
[1749319644893,0.24277047,105830.0,105820.0,0.72960079]
[1749319645766,0.62579208,105830.0,105820.0,0.13405162]
[1749319646037,0.0188993,105820.0,105810.0,0.61331505]
[1749319646230,0.02834922,105820.0,105810.0,1.08783453]
[1749319646451,0.01889921,105820.0,105810.0,1.08783453]
[1749319646670,0.02834904,105820.0,105810.0,1.08783453]
[1749319647124,0.62871798,105820.0,105810.0,0.77016336]
[1749319647350,0.64021913,105820.0,105810.0,0.65136214]
[1749319647595,0.64021913,105820.0,105810.0,0.62316]
[1749319647817,0.64021913,105820.0,105810.0,0.81217805]
[1749319648039,0.64021913,105820.0,105810.0,0.82162886]
[1749319648262,0.64021913,105820.0,105810.0,0.83107949]
[1749319648758,0.64321913,105820.0,105810.0,0.84053003]
[1749319648972,0.64321913,105820.0,105810.0,0.83107949]
[1749319648973,0.63376939,105820.0,105810.0,0.83107949]
[1749319649189,0.63376939,105820.0,105810.0,0.82162886]
[1749319649402,0.63676939,105820.0,105810.0,0.84053021]
[1749319649616,0.63676939,105820.0,105810.0,0.83107958]
[1749319649836,0.63676939,105820.0,105810.0,0.84053012]
[1749319650722,0.63676939,105820.0,105810.0,0.46245012]
[1749319650937,0.63676939,105820.0,105810.0,0.84049012]
[1749319651156,0.63676939,105820.0,105810.0,0.46245012]
[1749319651408,0.63676939,105820.0,105810.0,0.83099958]
[1749319651631,0.63676939,105820.0,105810.0,0.84045012]
[1749319652066,0.63676939,105820.0,105810.0,0.83099958]
[1749319652493,0.63676939,105820.0,105810.0,0.24508]
[1749319652793,0.63676939,105820.0,105810.0,0.6327309]
[1749319653021,0.63676939,105820.0,105810.0,0.82174895]
[1749319653450,0.63676939,105820.0,105810.0,0.83119967]
[1749319654117,0.63676939,105820.0,105810.0,0.20791967]
[1749319654330,0.62731956,105820.0,105810.0,0.20791967]
[1749319654555,0.62731956,105820.0,105810.0,0.57662895]
[1749319654999,0.62731956,105820.0,105810.0,0.3876109]
[1749319655206,0.03975054,105810.0,105800.0,0.45309251]
[1749319655433,0.46057109,105810.0,105800.0,0.30433199]
[1749319655650,0.46057109,105810.0,105800.0,0.30433252]
[1749319655651,0.6590395,105810.0,105800.0,0.30433252]
[1749319655867,0.47002145,105810.0,105800.0,0.93722369]
[1749319656084,0.65904004,105810.0,105800.0,0.38372118]
[1749319656372,0.45112037,105810.0,105800.0,0.69206369]
[1749319656592,0.43227109,105810.0,105800.0,0.69206369]
[1749319656807,0.03035171,105810.0,105800.0,0.69206369]
[1749319657632,0.03135171,105810.0,105800.0,0.69206369]
[1749319658975,0.02190099,105810.0,105800.0,0.69206369]
[1749319659199,0.03135171,105810.0,105800.0,0.69206369]
[1749319660500,0.03135171,105810.0,105800.0,0.68261252]
[1749319660703,0.03135171,105810.0,105800.0,0.69206369]
[1749319660905,0.02190099,105810.0,105800.0,0.69206369]
[1749319661109,0.02190063,105810.0,105800.0,0.70846369]
[1749319661311,0.04080171,105810.0,105800.0,0.70846369]
[1749319662503,0.03135099,105810.0,105800.0,0.70846369]
[1749319663245,0.03135099,105810.0,105800.0,0.73666583]
[1749319663654,0.03135099,105810.0,105800.0,0.70846369]
[1749319664228,0.03135099,105810.0,105800.0,0.73666583]
[1749319664541,0.04080171,105810.0,105800.0,0.73666583]
[1749319664888,0.03135099,105810.0,105800.0,0.73666583]
[1749319665344,0.04080171,105810.0,105800.0,0.73666583]
[1749319665808,0.04080162,105810.0,105800.0,0.73666583]
[1749319666228,0.04080162,105810.0,105800.0,0.77425829]
[1749319666450,0.02190045,105810.0,105800.0,0.73666583]
[1749319666684,0.05025198,105810.0,105800.0,0.73666583]
[1749319667093,0.05025189,105810.0,105800.0,0.73666583]
[1749319667301,0.05025189,105810.0,105800.0,0.77425829]
[1749319667721,0.04080144,105810.0,105800.0,0.77425829]
[1749319668762,0.04080144,105810.0,105800.0,0.75785829]
[1749319669178,0.04080144,105810.0,105800.0,0.72965615]
[1749319671365,0.03135081,105810.0,105800.0,0.78607236]
[1749319671641,0.04080135,105810.0,105800.0,0.78607236]
[1749319672665,0.003,105810.0,105800.0,1.23453259]
[1749319672868,0.003,105810.0,105800.0,1.19694013]
[1749319673077,0.003,105810.0,105800.0,0.79502075]
[1749319676417,0.003,105810.0,105800.0,0.73860454]
[1749319676543,0.003,105810.0,105800.0,0.79511608]
[1749319676754,0.003,105810.0,105800.0,0.79511516]
[1749319677162,0.003,105810.0,105800.0,0.79513028]
[1749319677367,0.003,105810.0,105800.0,0.73860454]
[1749319679258,0.003,105810.0,105800.0,0.79512493]
[1749319679460,0.003,105810.0,105800.0,0.73860454]
[1749319680625,0.003,105810.0,105800.0,0.73804454]
[1749319680847,0.003,105810.0,105800.0,0.7945648]
[1749319682262,0.003,105810.0,105800.0,0.79456258]
[1749319685340,0.02190045,105810.0,105800.0,0.50568258]